fUSD/lending_fUSD_20260526
["ID","MTS","AMOUNT","RATE_DAILY","PERIOD"]
[423053188,1779802248000,-1552.68040753,0.000299,2]
[423053189,1779802248000,-1602.19007656,0.000299,2]
[423053192,1779802248000,-500.0,0.00029999,30]
[423053187,1779802248000,-564.86033435,0.00029863,2]
[423053172,1779802248000,-500.0,0.00029863,2]
[423053168,1779802248000,-150.0,0.00029863,2]
[423053154,1779802248000,-500.0,0.00029863,2]
[423053163,1779802248000,-500.0,0.00029863,2]
[423053190,1779802248000,-707.08313586,0.000299,2]
[423053132,1779802248000,-150.0,0.00029589,14]
[423053133,1779802248000,-221.0,0.00029595,30]
[423053134,1779802248000,-158.0,0.00029595,30]
[423053135,1779802248000,-189.0,0.00029595,30]
[423053136,1779802248000,-153.0,0.00029595,30]
[423053137,1779802248000,-487.0,0.00029595,30]
[423053138,1779802248000,-235.0,0.00029595,30]
[423053141,1779802248000,-1552.68040753,0.000296,2]
[423053140,1779802248000,-296.0,0.00029595,30]
[423053139,1779802248000,-226.0,0.00029595,30]
[423053142,1779802248000,-1602.19007656,0.000296,2]
[423053143,1779802248000,-707.08313586,0.000296,2]
[423053144,1779802248000,-415.19,0.000296,7]
[423053145,1779802248000,-167.89,0.00029604,2]
[423053149,1779802248000,-500.0,0.00029863,2]
[423053147,1779802248000,-500.0,0.00029863,2]
[423053146,1779802248000,-500.0,0.00029863,2]
[423053148,1779802248000,-500.0,0.00029863,2]
[423053151,1779802248000,-500.0,0.00029863,2]
[423053150,1779802248000,-500.0,0.00029863,2]
[423053152,1779802248000,-500.0,0.00029863,2]
[423053153,1779802248000,-500.0,0.00029863,2]
[423053155,1779802248000,-500.0,0.00029863,2]
[423053156,1779802248000,-500.0,0.00029863,2]
[423053157,1779802248000,-500.0,0.00029863,2]
[423053162,1779802248000,-500.0,0.00029863,2]
[423053164,1779802248000,-500.0,0.00029863,2]
[423053191,1779802248000,-500.0,0.00029999,120]
[423053205,1779802248000,-180.58844431,0.00030035,4]
[423053186,1779802248000,-150.0,0.00029863,2]
[423053223,1779802248000,-150.0,0.00030152,2]
[423053227,1779802248000,-396.934874,0.000302,2]
[423053222,1779802248000,-150.0,0.00030152,2]
[423053225,1779802248000,-2989.799999,0.000302,2]
[423053224,1779802248000,-279.0,0.00030152,2]
[423053226,1779802248000,-1252.63,0.000302,6]
[423053230,1779802248000,-707.08313586,0.000302,2]
[423053232,1779802248000,-150.0,0.00030341,2]
[423053242,1779802248000,-854.0,0.00030567,30]
[423053241,1779802248000,-151.0,0.00030533,5]
[423053231,1779802248000,-1023.8,0.00030239,2]
[423053234,1779802248000,-8380.86,0.000304,14]
[423053221,1779802248000,-150.0,0.00030152,2]
[423053235,1779802248000,-195.27,0.00030411,120]
[423053240,1779802248000,-707.08313586,0.000305,2]
[423053239,1779802248000,-1602.19007656,0.000305,2]
[423053237,1779802248000,-1589.0,0.00030438,3]
[423053236,1779802248000,-166.0,0.00030411,120]
[423053244,1779802248000,-232.0,0.00030581,30]
[423053243,1779802248000,-261.0,0.00030581,30]
[423053245,1779802248000,-576.0,0.00030581,30]
[423053248,1779802248000,-221.0,0.00030595,30]
[423053246,1779802248000,-387.0,0.00030581,30]
[423053247,1779802248000,-158.0,0.00030581,30]
[423053250,1779802248000,-189.0,0.00030595,30]
[423053182,1779802248000,-500.0,0.00029863,2]
[423053238,1779802248000,-1552.68040753,0.000305,2]
[423053219,1779802248000,-150.0,0.00030152,2]
[423053233,1779802248000,-469.26782458,0.00030383,2]
[423053217,1779802248000,-268.23929188,0.00030137,2]
[423053220,1779802248000,-150.0,0.00030152,2]
[423053193,1779802248000,-500.0,0.00029999,120]
[423053195,1779802248000,-500.0,0.00029999,120]
[423053203,1779802248000,-294.0,0.0003,120]
[423053200,1779802248000,-35209.96324182,0.0003,4]
[423053202,1779802248000,-160.0,0.0003,120]
[423053199,1779802248000,-500.0,0.00029999,120]
[423053196,1779802248000,-500.0,0.00029999,120]
[423053204,1779802248000,-187.0,0.0003,120]
[423053201,1779802248000,-1752.59326,0.0003,120]
[423053197,1779802248000,-500.0,0.00029999,7]
[423053198,1779802248000,-500.0,0.00029999,120]
[423053249,1779802248000,-158.0,0.00030595,30]
[423053206,1779802248000,-165.8734,0.0003007,2]
[423053194,1779802248000,-309.0637561,0.00029999,120]
[423053215,1779802248000,-200.26828773,0.00030137,40]
[423053208,1779802248000,-150.0,0.00030104,2]
[423053209,1779802248000,-150.0,0.00030104,2]
[423053210,1779802248000,-150.0,0.00030104,2]
[423053214,1779802248000,-200.0,0.00030137,2]
[423053212,1779802248000,-1500.0,0.0003013,2]
[423053211,1779802248000,-151.0,0.00030104,2]
[423053213,1779802248000,-180.72,0.00030137,2]
[423053216,1779802248000,-150.0,0.00030137,2]
[423053207,1779802248000,-150.0,0.00030104,2]
[423053228,1779802248000,-1552.68040753,0.000302,2]
[423053218,1779802248000,-150.0,0.00030152,2]
[423053229,1779802248000,-1602.19007656,0.000302,2]
[423053290,1779802249000,-181.08010149,0.00031256,2]
[423053291,1779802249000,-1000.0,0.00031256,2]
[423053285,1779802249000,-181.08010149,0.00031256,2]
[423053295,1779802249000,-1000.0,0.00031256,2]
[423053288,1779802249000,-152.0,0.00031256,2]
[423053289,1779802249000,-599.60298507,0.00031256,2]
[423053284,1779802249000,-8260.13072238,0.00031256,2]
[423053286,1779802249000,-578.20924308,0.00031256,2]
[423053292,1779802249000,-623.58710447,0.00031256,2]
[423053293,1779802249000,-152.0,0.00031256,2]
[423053282,1779802249000,-151.0,0.00031256,2]
[423053305,1779802249000,-152.0,0.00031256,2]
[423053287,1779802249000,-181.08010149,0.00031256,2]
[423053294,1779802249000,-1000.0,0.00031256,2]
[423053301,1779802249000,-1000.0,0.00031256,2]
[423053296,1779802249000,-152.0,0.00031256,2]
[423053298,1779802249000,-152.0,0.00031256,2]
[423053306,1779802249000,-1000.0,0.00031256,2]
[423053302,1779802249000,-152.0,0.00031256,2]
[423053304,1779802249000,-1000.0,0.00031256,2]
[423053300,1779802249000,-1000.0,0.00031256,2]
[423053303,1779802249000,-1000.0,0.00031256,2]
[423053299,1779802249000,-1000.0,0.00031256,2]
[423053307,1779802249000,-152.0,0.00031256,2]
[423053310,1779802249000,-558.331,0.00031286,2]
[423053311,1779802249000,-221.13730874,0.00031286,2]
[423053314,1779802249000,-151.0,0.00031311,2]
[423053297,1779802249000,-1000.0,0.00031256,2]
[423053283,1779802249000,-1235.18214925,0.00031256,2]
[423053255,1779802249000,-296.0,0.00030595,30]
[423053277,1779802249000,-174.61919141,0.00031256,2]
[423053309,1779802249000,-155.58479665,0.00031256,2]
[423053251,1779802249000,-153.0,0.00030595,30]
[423053253,1779802249000,-235.0,0.00030595,30]
[423053252,1779802249000,-487.0,0.00030595,30]
[423053256,1779802249000,-415.19,0.000307,7]
[423053260,1779802249000,-340.12583517,0.00030944,7]
[423053258,1779802249000,-157.99,0.00030927,120]
[423053259,1779802249000,-191.0,0.0003094,2]
[423053257,1779802249000,-2965.08836171,0.00030769,2]
[423053261,1779802249000,-246.73413882,0.00030944,2]
[423053262,1779802249000,-416.52701627,0.00030951,2]
[423053264,1779802249000,-151.0,0.00030951,7]
[423053265,1779802249000,-151.0,0.00030951,7]
[423053281,1779802249000,-279.9045709,0.00031256,2]
[423053266,1779802249000,-151.0,0.00030951,7]
[423053267,1779802249000,-294.630038,0.00030951,7]
[423053269,1779802249000,-682.29238522,0.00031,2]
[423053270,1779802249000,-208.92835186,0.00031,120]
[423053268,1779802249000,-625.69043278,0.0003097,2]
[423053272,1779802249000,-200.0,0.00031096,2]
[423053271,1779802249000,-208.92835186,0.00031,30]
[423053274,1779802249000,-266.065126,0.000312,7]
[423053275,1779802249000,-743.50770149,0.00031256,2]
[423053279,1779802249000,-181.08010149,0.00031256,2]
[423053276,1779802249000,-599.60298507,0.00031256,2]
[423053278,1779802249000,-200.0,0.00031256,2]
[423053280,1779802249000,-160.0,0.00031256,2]
[423053273,1779802249000,-238.81781742,0.00031168,2]
[423053263,1779802249000,-276.85859044,0.00030951,2]
[423053308,1779802249000,-152.0,0.00031256,2]
[423053254,1779802249000,-226.0,0.00030595,30]
[423053315,1779802249000,-8565.75555911,0.00031311,2]
[423053350,1779802249000,-512.29,0.00031665,2]
[423053347,1779802249000,-296.0,0.00031595,30]
[423053348,1779802249000,-151.0,0.00031641,2]
[423053352,1779802249000,-801.85129954,0.00031696,2]
[423053346,1779802249000,-226.0,0.00031595,30]
[423053349,1779802249000,-773.24136889,0.00031641,2]
[423053353,1779802249000,-152.0,0.00031709,3]
[423053354,1779802249000,-151.0,0.00031751,2]
[423053355,1779802249000,-831.51979762,0.00031751,2]
[423053356,1779802249000,-771.01748644,0.00031804,2]
[423053357,1779802249000,-621.78829552,0.00031804,2]
[423053360,1779802249000,-187.78006524,0.00031804,2]
[423053359,1779802249000,-200.0,0.00031804,2]
[423053351,1779802249000,-151.0,0.00031696,2]
[423053363,1779802249000,-187.78006524,0.00031804,2]
[423053358,1779802249000,-181.08010149,0.00031804,2]
[423053366,1779802249000,-862.28603014,0.00031806,2]
[423053362,1779802249000,-290.26104002,0.00031804,2]
[423053364,1779802249000,-187.78006524,0.00031804,2]
[423053365,1779802249000,-151.0,0.00031806,2]
[423053369,1779802249000,-447.0,0.00031861,5]
[423053368,1779802249000,-150.0,0.00031858,2]
[423053367,1779802249000,-423.0,0.00031858,5]
[423053370,1779802249000,-1016.0,0.00031861,5]
[423053371,1779802249000,-158.14480742,0.00031861,2]
[423053374,1779802249000,-927.27566594,0.00031916,2]
[423053373,1779802249000,-9904.6097,0.000319,2]
[423053375,1779802249000,-200.0,0.0003195,2]
[423053361,1779802249000,-1280.88388877,0.00031804,2]
[423053345,1779802249000,-235.0,0.00031595,30]
[423053372,1779802249000,-894.19061325,0.00031861,2]
[423053343,1779802249000,-153.0,0.00031595,30]
[423053344,1779802249000,-487.0,0.00031595,30]
[423053317,1779802249000,-500.0,0.00031339,120]
[423053318,1779802249000,-250.0,0.00031351,7]
[423053312,1779802249000,-337.19589241,0.00031286,7]
[423053319,1779802249000,-8882.68851479,0.00031366,2]
[423053313,1779802249000,-305.93379519,0.00031286,7]
[423053330,1779802249000,-719.04747942,0.00031531,2]
[423053329,1779802249000,-151.0,0.00031531,2]
[423053331,1779802249000,-184.61713661,0.00031533,5]
[423053320,1779802249000,-151.0,0.00031366,2]
[423053321,1779802249000,-644.79446245,0.00031366,2]
[423053324,1779802249000,-151.0,0.00031476,2]
[423053323,1779802249000,-668.65185756,0.00031421,2]
[423053328,1779802249000,-315.99,0.0003148,120]
[423053316,1779802249000,-621.78829552,0.00031311,2]
[423053325,1779802249000,-693.39197629,0.00031476,2]
[423053326,1779802249000,-150.0,0.0003148,120]
[423053333,1779802249000,-261.0,0.00031581,30]
[423053341,1779802249000,-158.0,0.00031595,30]
[423053340,1779802249000,-221.0,0.00031595,30]
[423053339,1779802249000,-745.65223615,0.00031586,2]
[423053338,1779802249000,-151.0,0.00031586,2]
[423053342,1779802249000,-189.0,0.00031595,30]
[423053334,1779802249000,-232.0,0.00031581,30]
[423053337,1779802249000,-158.0,0.00031581,30]
[423053322,1779802249000,-151.0,0.00031421,2]
[423053327,1779802249000,-226.0,0.0003148,120]
[423053335,1779802249000,-576.0,0.00031581,30]
[423053336,1779802249000,-387.0,0.00031581,30]
[423053332,1779802249000,-782.11304097,0.00031558,2]
[423053418,1779802250000,-300.0,0.00032247,2]
[423053409,1779802250000,-997.16350561,0.00032026,2]
[423053417,1779802250000,-300.0,0.00032247,2]
[423053407,1779802250000,-250.0,0.00032,120]
[423053410,1779802250000,-200.0,0.00032055,2]
[423053414,1779802250000,-300.0,0.00032247,2]
[423053411,1779802250000,-160.0,0.000322,12]
[423053416,1779802250000,-300.0,0.00032247,2]
[423053415,1779802250000,-300.0,0.00032247,2]
[423053412,1779802250000,-160.0,0.000322,12]
[423053413,1779802250000,-1023.8,0.0003221,5]
[423053424,1779802250000,-644.79446245,0.00032352,2]
[423053426,1779802250000,-200.0,0.00032352,2]
[423053425,1779802250000,-187.78006524,0.00032352,2]
[423053428,1779802250000,-301.0006985,0.00032352,2]
[423053427,1779802250000,-194.72792766,0.00032352,2]
[423053419,1779802250000,-300.0,0.00032247,2]
[423053408,1779802250000,-188.0,0.00032,120]
[423053429,1779802250000,-194.72792766,0.00032352,2]
[423053420,1779802250000,-300.0,0.00032247,2]
[423053423,1779802250000,-799.54513344,0.00032352,2]
[423053422,1779802250000,-353.0,0.00032247,2]
[423053421,1779802250000,-300.0,0.00032247,2]
[423053437,1779802250000,-158.0,0.00032581,30]
[423053441,1779802250000,-153.0,0.00032595,30]
[423053431,1779802250000,-1328.27659266,0.00032352,2]
[423053430,1779802250000,-194.72792766,0.00032352,2]
[423053400,1779802250000,-213.56573393,0.00032,120]
[423053406,1779802250000,-250.0,0.00032,120]
[423053401,1779802250000,-173.04576088,0.00032,120]
[423053442,1779802250000,-487.0,0.00032595,30]
[423053381,1779802250000,-304.0,0.0003195,2]
[423053376,1779802250000,-200.0,0.0003195,2]
[423053377,1779802250000,-200.0,0.0003195,2]
[423053380,1779802250000,-200.0,0.0003195,2]
[423053379,1779802250000,-200.0,0.0003195,2]
[423053378,1779802250000,-200.0,0.0003195,2]
[423053382,1779802250000,-961.58486558,0.00031971,2]
[423053387,1779802250000,-186.2206014,0.00032,120]
[423053386,1779802250000,-234.24130633,0.00032,120]
[423053385,1779802250000,-183.04529357,0.00032,120]
[423053384,1779802250000,-209.09079783,0.00032,120]
[423053391,1779802250000,-196.79854578,0.00032,120]
[423053383,1779802250000,-177.37155278,0.00032,120]
[423053388,1779802250000,-175.73022311,0.00032,120]
[423053390,1779802250000,-225.15901755,0.00032,120]
[423053392,1779802250000,-164.8882927,0.00032,120]
[423053394,1779802250000,-272.23239821,0.00032,120]
[423053393,1779802250000,-897.55774229,0.00032,120]
[423053402,1779802250000,-194.94120344,0.00032,120]
[423053404,1779802250000,-504.27303855,0.00032,120]
[423053397,1779802250000,-1876.42041545,0.00032,120]
[423053398,1779802250000,-736.25607202,0.00032,120]
[423053396,1779802250000,-971.28894687,0.00032,120]
[423053403,1779802250000,-376.49712655,0.00032,120]
[423053405,1779802250000,-520.34694637,0.00032,120]
[423053395,1779802250000,-177.44836188,0.00032,120]
[423053399,1779802250000,-202.33110808,0.00032,120]
[423053389,1779802250000,-220.12610307,0.00032,120]
[423053433,1779802250000,-261.0,0.00032581,30]
[423053436,1779802250000,-387.0,0.00032581,30]
[423053470,1779802250000,-201.93286098,0.000329,2]
[423053467,1779802250000,-194.72792766,0.000329,2]
[423053475,1779802250000,-177.37155278,0.00033,120]
[423053477,1779802250000,-209.09079783,0.00033,120]
[423053472,1779802250000,-201.93286098,0.000329,2]
[423053468,1779802250000,-200.0,0.000329,2]
[423053474,1779802250000,-200.0,0.0003297,10]
[423053476,1779802250000,-183.04529357,0.00033,120]
[423053473,1779802250000,-1377.42282658,0.000329,2]
[423053478,1779802250000,-234.24130633,0.00033,120]
[423053479,1779802250000,-186.2206014,0.00033,120]
[423053484,1779802250000,-897.55774229,0.00033,120]
[423053490,1779802250000,-213.56573393,0.00033,120]
[423053488,1779802250000,-1876.42041545,0.00033,120]
[423053480,1779802250000,-175.73022311,0.00033,120]
[423053483,1779802250000,-196.79854578,0.00033,120]
[423053487,1779802250000,-971.28894687,0.00033,120]
[423053485,1779802250000,-272.23239821,0.00033,120]
[423053482,1779802250000,-225.15901755,0.00033,120]
[423053486,1779802250000,-177.44836188,0.00033,120]
[423053489,1779802250000,-736.25607202,0.00033,120]
[423053492,1779802250000,-194.94120344,0.00033,120]
[423053495,1779802250000,-520.34694637,0.00033,120]
[423053494,1779802250000,-504.27303855,0.00033,120]
[423053493,1779802250000,-376.49712655,0.00033,120]
[423053491,1779802250000,-173.04576088,0.00033,120]
[423053438,1779802250000,-221.0,0.00032595,30]
[423053471,1779802250000,-312.13772435,0.000329,2]
[423053469,1779802250000,-244.23638016,0.000329,2]
[423053481,1779802250000,-220.12610307,0.00033,120]
[423053460,1779802250000,-234.61,0.000329,120]
[423053435,1779802250000,-576.0,0.00032581,30]
[423053458,1779802250000,-151.0,0.00032877,7]
[423053434,1779802250000,-232.0,0.00032581,30]
[423053439,1779802250000,-158.0,0.00032595,30]
[423053440,1779802250000,-189.0,0.00032595,30]
[423053432,1779802250000,-678.94,0.00032525,120]
[423053444,1779802250000,-226.0,0.00032595,30]
[423053443,1779802250000,-235.0,0.00032595,30]
[423053454,1779802250000,-539.3637004,0.00032785,30]
[423053447,1779802250000,-160.0,0.00032625,2]
[423053446,1779802250000,-415.19,0.000326,7]
[423053453,1779802250000,-500.0,0.00032785,30]
[423053450,1779802250000,-500.0,0.00032785,30]
[423053448,1779802250000,-187.78006524,0.00032625,2]
[423053445,1779802250000,-296.0,0.00032595,30]
[423053463,1779802250000,-163.49,0.000329,120]
[423053462,1779802250000,-444.39,0.000329,120]
[423053449,1779802250000,-500.0,0.00032785,30]
[423053461,1779802250000,-261.54,0.000329,120]
[423053459,1779802250000,-167.40455632,0.00032877,2]
[423053455,1779802250000,-180.72,0.00032877,2]
[423053464,1779802250000,-8380.86,0.000329,14]
[423053456,1779802250000,-151.0,0.00032877,7]
[423053466,1779802250000,-668.65185756,0.000329,2]
[423053465,1779802250000,-829.12830338,0.000329,2]
[423053451,1779802250000,-500.0,0.00032785,30]
[423053452,1779802250000,-500.0,0.00032785,30]
[423053457,1779802250000,-151.0,0.00032877,7]
[423053533,1779802251000,-189.0,0.00033595,30]
[423053538,1779802251000,-296.0,0.00033595,30]
[423053537,1779802251000,-226.0,0.00033595,30]
[423053535,1779802251000,-487.0,0.00033595,30]
[423053534,1779802251000,-153.0,0.00033595,30]
[423053528,1779802251000,-576.0,0.00033581,30]
[423053531,1779802251000,-221.0,0.00033595,30]
[423053536,1779802251000,-235.0,0.00033595,30]
[423053532,1779802251000,-158.0,0.00033595,30]
[423053530,1779802251000,-158.0,0.00033581,30]
[423053541,1779802251000,-631.47,0.00033793,120]
[423053529,1779802251000,-387.0,0.00033581,30]
[423053539,1779802251000,-415.19,0.000336,7]
[423053554,1779802251000,-213.56573393,0.000339,120]
[423053542,1779802251000,-8380.86,0.000338,14]
[423053543,1779802251000,-218.4438059,0.00033804,14]
[423053547,1779802251000,-209.09079783,0.000339,120]
[423053544,1779802251000,-225.60401449,0.00033804,14]
[423053548,1779802251000,-196.79854578,0.000339,120]
[423053551,1779802251000,-971.28894687,0.000339,120]
[423053550,1779802251000,-272.23239821,0.000339,120]
[423053546,1779802251000,-183.04529357,0.000339,120]
[423053549,1779802251000,-897.55774229,0.000339,120]
[423053545,1779802251000,-177.37155278,0.000339,120]
[423053552,1779802251000,-1876.42041545,0.000339,120]
[423053553,1779802251000,-736.25607202,0.000339,120]
[423053526,1779802251000,-261.0,0.00033581,30]
[423053540,1779802251000,-8197.84714793,0.0003377,2]
[423053522,1779802251000,-150.0,0.00033461,2]
[423053497,1779802251000,-394.04265457,0.00033,30]
[423053524,1779802251000,-216.0,0.00033461,2]
[423053502,1779802251000,-394.04265457,0.00033,30]
[423053498,1779802251000,-394.04265457,0.00033,30]
[423053501,1779802251000,-394.04265457,0.00033,30]
[423053499,1779802251000,-394.04265457,0.00033,30]
[423053496,1779802251000,-2000.0,0.00033,7]
[423053500,1779802251000,-394.04265457,0.00033,30]
[423053503,1779802251000,-394.04265457,0.00033,60]
[423053507,1779802251000,-350.0,0.00033014,5]
[423053506,1779802251000,-394.04265457,0.00033,60]
[423053505,1779802251000,-394.04265457,0.00033,60]
[423053508,1779802251000,-160.0,0.000332,16]
[423053514,1779802251000,-201.93286098,0.00033448,2]
[423053509,1779802251000,-160.0,0.000332,16]
[423053523,1779802251000,-150.0,0.00033461,2]
[423053510,1779802251000,-500.0,0.00033207,120]
[423053515,1779802251000,-200.0,0.00033448,2]
[423053513,1779802251000,-693.39197629,0.00033448,2]
[423053512,1779802251000,-859.8060506,0.00033448,2]
[423053511,1779802251000,-1536.80830613,0.00033448,2]
[423053527,1779802251000,-232.0,0.00033581,30]
[423053517,1779802251000,-220.93064731,0.00033448,2]
[423053516,1779802251000,-209.40437684,0.00033448,2]
[423053518,1779802251000,-209.40437684,0.00033448,2]
[423053520,1779802251000,-150.0,0.00033451,2]
[423053557,1779802251000,-376.49712655,0.000339,120]
[423053519,1779802251000,-1428.38747117,0.00033448,2]
[423053521,1779802251000,-150.0,0.00033461,2]
[423053525,1779802251000,-2965.08836171,0.00033536,2]
[423053504,1779802251000,-394.04265457,0.00033,60]
[423053555,1779802251000,-173.04576088,0.000339,120]
[423053595,1779802251000,-152.0,0.00034321,4]
[423053559,1779802251000,-520.34694637,0.000339,120]
[423053588,1779802251000,-160.0,0.000342,21]
[423053597,1779802251000,-400.0,0.00034481,2]
[423053593,1779802251000,-2000.0,0.00034247,30]
[423053592,1779802251000,-933.01069487,0.00034244,2]
[423053603,1779802251000,-468.245213,0.00034544,7]
[423053602,1779802251000,-151.0,0.00034544,7]
[423053599,1779802251000,-233.912954,0.00034544,7]
[423053600,1779802251000,-468.245213,0.00034544,7]
[423053601,1779802251000,-151.0,0.00034544,7]
[423053596,1779802251000,-163.0,0.00034404,11]
[423053594,1779802251000,-3035.0,0.000343,120]
[423053598,1779802251000,-470.94830105,0.00034481,2]
[423053604,1779802251000,-468.245213,0.00034544,7]
[423053591,1779802251000,-151.0,0.00034222,7]
[423053606,1779802251000,-468.245213,0.00034544,7]
[423053608,1779802251000,-924.60877283,0.00034544,2]
[423053605,1779802251000,-151.0,0.00034544,7]
[423053616,1779802251000,-576.0,0.00034581,30]
[423053613,1779802251000,-1536.04360648,0.00034544,2]
[423053611,1779802251000,-225.18697532,0.00034544,2]
[423053610,1779802251000,-200.0,0.00034544,2]
[423053612,1779802251000,-182.42109768,0.00034544,2]
[423053614,1779802251000,-261.0,0.00034581,30]
[423053609,1779802251000,-217.15233878,0.00034544,2]
[423053615,1779802251000,-232.0,0.00034581,30]
[423053618,1779802251000,-158.0,0.00034581,30]
[423053617,1779802251000,-387.0,0.00034581,30]
[423053558,1779802251000,-504.27303855,0.000339,120]
[423053607,1779802251000,-151.0,0.00034544,7]
[423053590,1779802251000,-208.0,0.00034212,2]
[423053619,1779802251000,-230.1,0.0003459,30]
[423053585,1779802251000,-5000.0,0.00034101,2]
[423053589,1779802251000,-160.0,0.000342,21]
[423053562,1779802251000,-350.0,0.00033973,5]
[423053560,1779802251000,-500.0,0.0003396,30]
[423053564,1779802251000,-500.0,0.00033992,30]
[423053565,1779802251000,-500.0,0.00033992,120]
[423053566,1779802251000,-500.0,0.00033992,120]
[423053561,1779802251000,-384.19,0.0003396,30]
[423053563,1779802251000,-500.0,0.00033992,120]
[423053568,1779802251000,-500.0,0.00033992,7]
[423053578,1779802251000,-200.0,0.00033996,2]
[423053567,1779802251000,-500.0,0.00033992,120]
[423053571,1779802251000,-160.0,0.00033994,2]
[423053569,1779802251000,-500.0,0.00033992,120]
[423053570,1779802251000,-500.0,0.00033992,120]
[423053556,1779802251000,-194.94120344,0.000339,120]
[423053576,1779802251000,-209.40437684,0.00033996,2]
[423053577,1779802251000,-672.94213481,0.00033996,2]
[423053587,1779802251000,-1023.8,0.00034182,7]
[423053584,1779802251000,-5000.0,0.00034101,2]
[423053580,1779802251000,-217.15233878,0.00033996,2]
[423053582,1779802251000,-1252.63,0.00034,120]
[423053583,1779802251000,-5000.0,0.00034101,2]
[423053586,1779802251000,-230.24578174,0.00034144,2]
[423053579,1779802251000,-217.15233878,0.00033996,2]
[423053572,1779802251000,-194.72792766,0.00033994,2]
[423053575,1779802251000,-891.61887448,0.00033996,2]
[423053573,1779802251000,-599.60298507,0.00033995,2]
[423053574,1779802251000,-646.65982734,0.00033995,2]
[423053581,1779802251000,-1481.2378076,0.00033996,2]
[423053660,1779802252000,-361.655458,0.00035,7]
[423053663,1779802252000,-198.47739321,0.00035,30]
[423053662,1779802252000,-361.655458,0.00035,7]
[423053659,1779802252000,-361.655458,0.00035,7]
[423053653,1779802252000,-213.56573393,0.00035,120]
[423053655,1779802252000,-376.49712655,0.00035,120]
[423053656,1779802252000,-504.27303855,0.00035,120]
[423053654,1779802252000,-194.94120344,0.00035,120]
[423053669,1779802252000,-225.18697532,0.00035092,2]
[423053648,1779802252000,-897.55774229,0.00035,120]
[423053657,1779802252000,-520.34694637,0.00035,120]
[423053651,1779802252000,-1876.42041545,0.00035,120]
[423053661,1779802252000,-361.655458,0.00035,7]
[423053665,1779802252000,-2316.0,0.00035024,11]
[423053658,1779802252000,-556.62462819,0.00035,120]
[423053666,1779802252000,-230.24578172,0.00035037,2]
[423053664,1779802252000,-824.19638113,0.00035,3]
[423053668,1779802252000,-958.81929743,0.00035092,2]
[423053671,1779802252000,-233.5188934,0.00035092,2]
[423053672,1779802252000,-1592.87721992,0.00035092,2]
[423053681,1779802252000,-423.06458,0.00035221,7]
[423053683,1779802252000,-151.0,0.00035221,7]
[423053670,1779802252000,-200.0,0.00035092,2]
[423053682,1779802252000,-423.06458,0.00035221,7]
[423053650,1779802252000,-971.28894687,0.00035,120]
[423053673,1779802252000,-150.0,0.00035124,2]
[423053667,1779802252000,-500.0,0.00035075,120]
[423053645,1779802252000,-6288.61404138,0.00035,30]
[423053641,1779802252000,-1397.836603,0.000346,7]
[423053647,1779802252000,-196.79854578,0.00035,120]
[423053676,1779802252000,-1264.47,0.000352,60]
[423053627,1779802252000,-296.0,0.00034595,30]
[423053628,1779802252000,-415.19,0.000346,7]
[423053630,1779802252000,-559.826168,0.000346,7]